fUSD/lending_fUSD_20240502
["ID","MTS","AMOUNT","RATE_DAILY","PERIOD"]
[325305866,1714689045942,-500.0,0.00019178,2]
[325305867,1714689045952,-529.70884617,0.00019178,2]
[325305868,1714689045962,-591.66114168,0.00019178,2]
[325305870,1714689045972,-798.71304291,0.00019178,2]
[325305872,1714689045983,-500.0,0.00019178,2]
[325305873,1714689045993,-798.71304291,0.00019178,2]
[325305874,1714689046003,-397.00894449,0.00019178,2]
[325305875,1714689046013,-798.71304291,0.00019178,2]
[325305876,1714689046022,-798.71304291,0.00019178,2]
[325305877,1714689046031,-798.71304291,0.00019178,2]
[325305878,1714689046043,-798.71304291,0.00019178,2]
[325305879,1714689046052,-798.71304291,0.00019178,2]
[325305880,1714689046062,-798.71304291,0.00019178,2]
[325305881,1714689046071,-798.71304291,0.00019178,2]
[325305882,1714689046081,-798.71304291,0.00019178,2]
[325305883,1714689046092,-798.71304291,0.00019178,2]
[325305884,1714689046103,-798.71304291,0.00019178,2]
[325305885,1714689046112,-798.71304291,0.00019178,2]
[325305886,1714689046123,-798.71304291,0.00019178,2]
[325305887,1714689046134,-798.71304291,0.00019178,2]
[325305888,1714689046143,-798.71304291,0.00019178,2]
[325305889,1714689046153,-798.71304291,0.00019178,2]
[325305890,1714689046162,-798.71304291,0.00019178,2]
[325305891,1714689046173,-798.71304291,0.00019178,2]
[325305892,1714689046184,-798.71304291,0.00019178,2]
[325305893,1714689046193,-798.71304291,0.00019178,2]
[325305894,1714689046203,-798.71304291,0.00019178,2]
[325305895,1714689046214,-798.71304291,0.00019178,2]
[325305896,1714689046223,-798.71304291,0.00019178,2]
[325305897,1714689046232,-798.71304291,0.00019178,2]
[325305898,1714689046242,-798.71304291,0.00019178,2]
[325305899,1714689046251,-798.71304291,0.00019178,2]
[325305900,1714689046261,-798.71304291,0.00019178,2]
[325305901,1714689046271,-798.71304291,0.00019178,2]
[325305902,1714689046283,-798.71304291,0.00019178,2]
[325305903,1714689046293,-798.71304291,0.00019178,2]
[325305904,1714689046303,-798.71304291,0.00019178,2]
[325305905,1714689046315,-798.71304291,0.00019178,2]
[325305906,1714689046326,-798.71304291,0.00019178,2]
[325305907,1714689046336,-798.71304291,0.00019178,2]
[325305908,1714689046346,-798.71304291,0.00019178,2]
[325305909,1714689046356,-798.71304291,0.00019178,2]
[325305910,1714689046367,-798.71304291,0.00019178,2]
[325305911,1714689046376,-798.71304291,0.00019178,2]
[325305912,1714689046385,-798.71304291,0.00019178,2]
[325305913,1714689046395,-798.71304291,0.00019178,2]
[325305914,1714689046404,-798.71304291,0.00019178,2]
[325305915,1714689046414,-798.71304291,0.00019178,2]
[325305916,1714689046423,-798.71304291,0.00019178,2]
[325305917,1714689046434,-798.71304291,0.00019178,2]
[325305918,1714689046448,-798.71304291,0.00019178,2]
[325305919,1714689046458,-798.71304291,0.00019178,2]
[325305920,1714689046469,-798.71304291,0.00019178,2]
[325305921,1714689046481,-798.71304291,0.00019178,2]
[325305922,1714689046492,-798.71304291,0.00019178,2]
[325305923,1714689046502,-798.71304291,0.00019178,2]
[325305924,1714689046512,-798.71304291,0.00019178,2]
[325305925,1714689046521,-798.71304291,0.00019178,2]
[325305926,1714689046531,-798.71304291,0.00019178,2]
[325305927,1714689046541,-798.71304291,0.00019178,2]
[325305928,1714689046552,-798.71304291,0.00019178,2]
[325305929,1714689046563,-798.71304291,0.00019178,2]
[325305930,1714689046573,-500.0,0.00019178,2]
[325305931,1714689046583,-500.0,0.00019178,2]
[325305932,1714689046592,-500.0,0.00019178,2]
[325305933,1714689046603,-500.0,0.00019178,2]
[325305934,1714689046613,-500.0,0.00019178,2]
[325305935,1714689046623,-500.0,0.00019178,2]
[325305936,1714689046634,-500.0,0.00019178,2]
[325305937,1714689046643,-500.0,0.00019178,2]
[325305938,1714689046654,-500.0,0.00019178,2]
[325305939,1714689046664,-500.0,0.00019178,2]
[325305940,1714689046673,-500.0,0.00019178,2]
[325305941,1714689046683,-615.0,0.00019178,2]
[325305942,1714689046692,-500.0,0.00019178,2]
[325305943,1714689046701,-784.19098757,0.00019178,2]
[325305944,1714689046711,-784.19098757,0.00019178,2]
[325305945,1714689046720,-784.19098757,0.00019178,2]
[325305946,1714689046729,-784.19098757,0.00019178,2]
[325305947,1714689046738,-784.19098757,0.00019178,2]
[325305948,1714689046747,-784.19098757,0.00019178,2]
[325305949,1714689046755,-784.19098757,0.00019178,2]
[325305950,1714689046765,-784.19098757,0.00019178,2]
[325305951,1714689046775,-784.19098757,0.00019178,2]
[325305952,1714689046784,-784.19098757,0.00019178,2]
[325305953,1714689046793,-784.19098757,0.00019178,2]
[325305954,1714689046803,-784.19098757,0.00019178,2]
[325305955,1714689046812,-784.19098757,0.00019178,2]
[325305956,1714689046822,-784.19098757,0.00019178,2]
[325305957,1714689046831,-784.19098757,0.00019178,2]
[325305958,1714689046841,-784.19098757,0.00019178,2]
[325305959,1714689046850,-784.19098757,0.00019178,2]
[325305960,1714689046860,-784.19098757,0.00019178,2]
[325305961,1714689046870,-784.19098757,0.00019178,2]
[325305962,1714689046881,-784.19098757,0.00019178,2]
[325305963,1714689046890,-784.19098757,0.00019178,2]
[325305964,1714689046900,-784.19098757,0.00019178,2]
[325305965,1714689046909,-784.19098757,0.00019178,2]
[325305966,1714689046918,-784.19098757,0.00019178,2]
[325305967,1714689046927,-807.7167172,0.00019178,2]
[325305968,1714689046936,-807.7167172,0.00019178,2]
[325305969,1714689046945,-807.7167172,0.00019178,2]
[325305970,1714689046955,-807.7167172,0.00019178,2]
[325305971,1714689046964,-807.7167172,0.00019178,2]
[325305972,1714689046973,-807.7167172,0.00019178,2]
[325305973,1714689046983,-807.7167172,0.00019178,2]
[325305974,1714689046993,-807.7167172,0.00019178,2]
[325305975,1714689047003,-807.7167172,0.00019178,2]
[325305976,1714689047011,-807.7167172,0.00019178,2]
[325305977,1714689047021,-1864.67,0.000192,2]
[325305978,1714689047029,-311.214801,0.00019452,2]
[325305979,1714689047038,-272.53431777,0.000199,2]
[325305980,1714689047048,-272.53431757,0.000199,2]
[325305981,1714689047057,-272.53431757,0.000199,2]
[325305982,1714689047067,-272.53431757,0.000199,2]
[325305983,1714689047076,-272.53431757,0.000199,2]
[325305984,1714689047085,-272.53431757,0.000199,2]
[325305985,1714689047094,-272.53431757,0.000199,2]
[325305986,1714689047103,-272.53431757,0.000199,2]
[325305987,1714689047113,-272.53431757,0.000199,2]
[325305988,1714689047122,-272.53431757,0.000199,2]
[325305989,1714689047131,-272.53431757,0.000199,2]
[325305990,1714689047140,-272.53431757,0.000199,2]
[325305991,1714689047150,-272.53431757,0.000199,2]
[325305992,1714689047159,-272.53431757,0.000199,2]
[325305993,1714689047168,-272.53431757,0.000199,2]
[325305994,1714689047177,-272.53431757,0.000199,2]
[325305995,1714689047187,-272.53431757,0.000199,2]
[325305996,1714689047196,-272.53431757,0.000199,2]
[325305997,1714689047205,-272.53431757,0.000199,2]
[325305998,1714689047214,-272.53431757,0.000199,2]
[325305999,1714689047224,-272.53431757,0.000199,2]
[325306000,1714689047233,-272.53431757,0.000199,2]
[325306001,1714689047243,-272.53431757,0.000199,2]
[325306002,1714689047252,-272.53431757,0.000199,2]
[325306003,1714689047261,-272.53431757,0.000199,2]
[325306004,1714689047271,-272.53431757,0.000199,2]
[325306005,1714689047280,-272.53431757,0.000199,2]
[325306006,1714689047289,-272.53431757,0.000199,2]
[325306007,1714689047299,-272.53431757,0.000199,2]
[325306008,1714689047308,-272.53431757,0.000199,2]
[325306009,1714689047318,-272.53431757,0.000199,2]
[325306010,1714689047327,-272.53431757,0.000199,2]
[325306011,1714689047336,-272.53431757,0.000199,2]
[325306012,1714689047345,-216.98737483,0.000199,2]
[325306013,1714689047355,-200.88129127,0.000199,2]
[325306014,1714689047364,-107185.13274476,0.0001999,2]
[325306015,1714689047373,-184.64161214,0.0002,2]
[325306016,1714689047383,-155.0,0.0002,2]
[325306017,1714689047392,-808.71921677,0.0002,2]
[325306018,1714689047402,-918.99059536,0.0002,2]
[325306019,1714689047411,-626.33513578,0.0002,2]
[325306020,1714689047420,-290.4249517,0.0002,2]
[325306021,1714689047430,-5174.10818979,0.0002,2]
[325306022,1714689047444,-3731.29166304,0.0002,2]
[325306023,1714689047453,-6653.0,0.0002,2]
[325306024,1714689047462,-14549.20388979,0.0002,2]
[325306025,1714689047472,-3950.0,0.0002,2]
[325306026,1714689047484,-432.98495096,0.0002,2]
[325306027,1714689047493,-2463.04763576,0.0002,2]
[325306028,1714689047503,-7557.04027396,0.0002,2]
[325306029,1714689047512,-2554.81160038,0.0002,2]
[325306030,1714689047521,-500.0,0.0002,3]
[325306031,1714689047531,-958.51,0.00020015,2]
[325306032,1714689047540,-205.11297875,0.00020018,2]
[325306033,1714689047549,-272.53431757,0.00020067,2]
[325306034,1714689047558,-311.214801,0.00020274,2]
[325306035,1714689047568,-272.53431757,0.00020284,2]
[325306036,1714689047578,-272.53431757,0.00020501,2]
[325306037,1714689047588,-1000.0,0.00020609,2]
[325306038,1714689047597,-272.53431757,0.00020718,2]
[325306039,1714689047607,-192.84,0.00020743,2]
[325306040,1714689047617,-151.7413741,0.000208,2]
[325306041,1714689047626,-640.0,0.00020818,2]
[325306042,1714689047635,-81.74049736,0.00020835,2]
[325306043,1714689047652,-1380.67186331,0.00020835,2]
[325306044,1714689047661,-155.0,0.000209,2]
[325306045,1714689047670,-7984.05297464,0.000209,2]
[325306046,1714689048222,-51708.51279733,0.000209,2]
[325306047,1714689048232,-19000.01178562,0.000209,2]
[325306048,1714689048242,-272.53431757,0.00020935,2]
[325306049,1714689048251,-1432.68462422,0.00021,2]
[325306050,1714689048260,-155.0,0.00021,2]
[325306051,1714689048269,-800.46727573,0.00021,2]
[325306052,1714689048279,-189.84,0.00021077,2]
[325306053,1714689048289,-272.53431757,0.00021152,2]
[325306054,1714689048298,-272.53431757,0.0002137,2]
[325306055,1714689048308,-272.53431757,0.00021587,2]
[325306056,1714689048317,-155.42,0.00021644,2]
[325306057,1714689048326,-272.53431757,0.00021804,2]
[325306058,1714689048336,-497837.8158662,0.00021809,2]
[325306059,1714689048346,-181.54390234,0.00021879,2]
[325306060,1714689048355,-2349.59,0.000219,2]
[325306061,1714689048365,-3166.55,0.000219,2]
[325306062,1714689048374,-200.0,0.000219,2]
[325306063,1714689048383,-1000.0,0.000219,2]
[325306064,1714689048393,-2000.0,0.000219,2]
[325306065,1714689048402,-500.0,0.000219,2]
[325306066,1714689048411,-1200.0,0.000219,2]
[325306067,1714689048421,-170.82,0.00021912,2]
[325306068,1714689048430,-156.46,0.00021918,2]
[325306069,1714689048443,-250.0,0.00021918,2]
[325306070,1714689048452,-954.00239953,0.00022,2]
[325306071,1714689048461,-7734.55246347,0.00022,2]
[325306072,1714689048471,-239.13111653,0.00022,2]
[325306073,1714689048483,-1056.23956714,0.00022,2]
[325306074,1714689048494,-550.0,0.00022,3]
[325306075,1714689048503,-272.53431757,0.00022021,2]
[325306076,1714689048513,-224.26411535,0.0002211,2]
[325306077,1714689048523,-153.03920344,0.0002218,2]
[325306078,1714689048533,-272.53431757,0.00022238,2]
[325306079,1714689048542,-272.53431757,0.00022455,2]
[325306080,1714689048552,-184.44737748,0.0002249,2]
[325306081,1714689048561,-33061.24331725,0.000225,2]
[325306082,1714689048571,-272.53431757,0.00022673,2]
[325306083,1714689048581,-236.7347572,0.00022748,2]
[325306084,1714689048590,-192.84,0.00022817,2]
[325306085,1714689048599,-272.53431757,0.0002289,2]
[325306086,1714689048608,-19000.01178562,0.000229,2]
[325306087,1714689048618,-17686.94369324,0.00023,2]
[325306088,1714689048627,-272.53431757,0.00023107,2]
[325306089,1714689048636,-272.53431757,0.00023324,2]
[325306090,1714689048646,-1999.89651016,0.000234,2]
[325306091,1714689048657,-1864.67,0.000234,2]
[325306092,1714689048667,-272.53431757,0.00023541,2]
[325306093,1714689048676,-2349.59,0.000236,2]
[325306094,1714689048685,-3166.55,0.000236,2]
[325306095,1714689048694,-272.53431757,0.00023758,2]
[325306096,1714689048704,-150.0,0.000239,2]
[325306097,1714689048714,-1377.5035958,0.00023964,2]
[325306098,1714689048724,-560.51521049,0.00023964,2]
[325306099,1714689048734,-272.53431757,0.00023976,2]
[325306100,1714689048744,-562.86153428,0.00024,2]
[325306101,1714689048754,-600.0,0.00024,3]
[325306102,1714689048763,-181.54390234,0.00024006,2]
[325306103,1714689048774,-1033.25974593,0.000241,2]
[325306104,1714689048784,-272.53431757,0.00024193,2]
[325306105,1714689048793,-393.70478851,0.0002421,2]
[325306106,1714689048803,-1000.0,0.00024242,2]
[325306107,1714689048812,-523.94054394,0.0002425,2]
[325306108,1714689048822,-181.54390234,0.00024323,2]
[325306109,1714689048832,-272.53431757,0.0002441,2]
[325306110,1714689048843,-272.53431757,0.00024627,2]
[325306111,1714689048852,-666.0,0.00024657,2]
[325306112,1714689048861,-888.0,0.00024657,2]
[325306113,1714689048871,-1197.41476569,0.00024689,2]
[325306114,1714689048880,-3000.0,0.000247,2]
[325306115,1714689048890,-272.53431757,0.00024844,2]
[325306116,1714689048901,-1127.02,0.00024879,2]
[325306117,1714689048911,-37393.75485043,0.00024892,2]
[325306118,1714689048920,-293.29822192,0.00024892,2]
[325306119,1714689048929,-2212.20569301,0.00024892,2]
[325306120,1714689048939,-443.481164,0.00024892,2]
[325306121,1714689048948,-167.56442339,0.00024892,2]
[325306122,1714689048957,-1041.0025071,0.00024892,2]
[325306123,1714689048966,-1041.0025071,0.00024892,2]
[325306124,1714689048976,-2606.85980791,0.00025,2]
[325306125,1714689048985,-471.2169433,0.00025,2]
[325306126,1714689048995,-444.95475943,0.00025,2]
[325306127,1714689049004,-155.0,0.00025,2]
[325306128,1714689049015,-254251.25443853,0.00025,2]
[325306129,1714689049029,-345748.74556147,0.00025,2]
[325306130,1714689049038,-2849.23734965,0.00025,2]
[325306131,1714689049047,-3312.684,0.00025,2]
[325306132,1714689049056,-272.53431757,0.00025061,2]
[325306133,1714689049257,-16173.75056406,0.000251,2]
[325306134,1714689049277,-3169.85155097,0.000251,2]
[325306135,1714689049287,-619.55342244,0.0002511,30]
[325306136,1714689049297,-272.53431757,0.00025279,2]
[325306137,1714689049307,-272.53431757,0.00025496,2]
[325306138,1714689049319,-156.46,0.00025571,2]
[325306139,1714689049328,-2349.59,0.000256,2]
[325306140,1714689049338,-3166.55,0.000256,2]
[325306141,1714689049347,-1314.42,0.0002563,2]
[325306142,1714689049357,-272.53431757,0.00025713,2]
[325306143,1714689049366,-2492.28170429,0.0002585,2]
[325306144,1714689049376,-1462.41236066,0.00025868,2]
[325306145,1714689049385,-272.53431757,0.0002593,2]
[325306146,1714689049395,-909.90104125,0.0002597,2]
[325306147,1714689049404,-4235.12221943,0.00026,2]
[325306148,1714689049414,-888.0,0.00026027,4]
[325306149,1714689049424,-272.53431757,0.00026147,2]
[325306150,1714689049434,-272.53431757,0.00026364,2]
[325306151,1714689049449,-154.22761352,0.00026381,2]
[325306152,1714689049459,-25715.51897603,0.000264,2]
[325306153,1714689049468,-1864.67,0.000264,2]
[325306154,1714689049479,-150.0,0.000264,5]
[325306155,1714689049489,-272.53431757,0.00026582,2]
[325306156,1714689049499,-20000.0,0.00026591,2]
[325306157,1714689049508,-272.53431757,0.00026799,2]
[325306158,1714689049518,-150.0,0.000269,5]
[325306159,1714689049528,-1599.13239617,0.00027,2]
[325306160,1714689049538,-10973.48903626,0.00027,2]
[325306161,1714689049547,-149343.77330033,0.00027,2]
[325306162,1714689049559,-385.401005,0.00027,2]
[325306163,1714689051553,-738.57999998,0.00012999,2]
[325306164,1714689051576,-2316.29066277,0.00012999,2]
[325306165,1714689051586,-183.69453362,0.000199,2]
[325306166,1714689051595,-3540.31480361,0.000249,2]
[325306167,1714689051619,-8102.33510708,0.000249,2]
[325306168,1714689051631,-7357.36187493,0.000249,2]
[325306169,1714689051641,-1228.0,0.00026319,2]
[325306170,1714689051652,-91618.51012509,0.00027,2]
[325306171,1714689051717,-720.134902,0.00027,2]
[325306172,1714689051729,-6254.70780033,0.00027,2]
[325306175,1714689066981,4755.44446193,0.000129,2]
[325306188,1714689291947,156.95680701,0.00012899,2]
[325306212,1714689687975,173.63,0.00024815,120]
[325306216,1714689768156,-156.0,0.000265,120]
[325306217,1714689768195,-2000.0,0.0002758,30]
[325306218,1714689768232,-2000.0,0.0002758,30]
[325306219,1714689768268,-2000.0,0.0002758,30]
[325306220,1714689768306,-2000.0,0.0002758,30]
[325306221,1714689768343,-2000.0,0.0002758,30]
[325306222,1714689768382,-1359.42412319,0.0002758,30]
[325306223,1714689768436,-173.63,0.0002836,120]
[325306224,1714689768479,-261.09,0.00029621,120]
[325306225,1714689768521,-1571.76632968,0.00030134,120]
[325306226,1714689768591,-173.63,0.00031905,120]
[325306227,1714689768638,-261.09,0.00033324,120]
[325306228,1714689768678,-876.28,0.00033853,120]
[325306229,1714689768721,-1000.0,0.000349,30]
[325306230,1714689768760,-1200.0,0.00035,36]
[325306231,1714689768811,-1200.0,0.00036,37]
[325306232,1714689768848,-1127.02,0.00036112,120]
[325306233,1714689768886,-2924.52,0.00037,30]
[325306234,1714689768923,-3954.0,0.00037,60]
[325306235,1714689768968,-261.09,0.00037027,120]
[325306236,1714689769008,-2248.94299227,0.00038,120]
[325306237,1714689769043,-1200.0,0.00038,39]
[325306238,1714689769079,-1259.73345824,0.000389,30]
[325306239,1714689769113,-1000.0,0.00038904,120]
[325306240,1714689769146,-1200.0,0.00039,40]
[325306241,1714689769179,-41217.85725923,0.00039,30]
[325306242,1714689769224,-150.29475591,0.00039461,30]
[325306243,1714689769260,-150.29475591,0.00039961,32]
[325306244,1714689769298,-500.0,0.00039999,31]
[325306245,1714689769334,-500.0,0.00039999,31]
[325306246,1714689769371,-339.64429375,0.00039999,31]
[325306247,1714689769406,-500.0,0.00039999,31]
[325306248,1714689769442,-500.0,0.00039999,31]
[325306249,1714689769477,-500.0,0.00039999,31]
[325306250,1714689769512,-500.0,0.00039999,31]
[325306251,1714689769548,-500.0,0.00039999,31]
[325306252,1714689769582,-500.0,0.00039999,31]
[325306253,1714689769617,-244.6909971,0.00039999,31]
[325306254,1714689769892,-281.58660998,0.00039999,31]
[325306255,1714689769929,-34056.75116245,0.0004,90]
[325306256,1714689769965,-1200.0,0.0004,41]
[325306257,1714689770000,-478.4009917,0.0004,120]
[325306258,1714689770034,-328.70111564,0.0004,120]
[325306259,1714689770067,-249.0542824,0.0004,120]
[325306260,1714689770102,-218.11375,0.00040088,30]
[325306261,1714689770136,-218.11375,0.00040288,30]
[325306262,1714689770170,-4349.4,0.00040327,79]
[325306263,1714689770204,-218.11375,0.00040488,30]
[325306264,1714689770239,-218.11375,0.00040688,30]
[325306265,1714689770276,-261.09,0.00040729,120]
[325306266,1714689770314,-150.29475591,0.00040961,37]
[325306267,1714689770349,-1250.0,0.00041,120]
[325306268,1714689770385,-218.11375,0.00041088,30]
[325306269,1714689770420,-218.11375,0.00041288,30]
[325306270,1714689770454,-218.11375,0.00041488,30]
[325306271,1714689770488,-3000.0,0.0004152,30]
[325306272,1714689770525,-3900.0,0.0004152,30]
[325306273,1714689770561,-500.0,0.0004152,30]
[325306274,1714689770595,-419.23653145,0.00041575,30]
[325306275,1714689771550,-218.11375,0.00041688,30]
[325306276,1714689771596,-300.0,0.00041874,31]
[325306277,1714689771635,-150.29475591,0.00041961,41]
[325306278,1714689771676,-87388.55175253,0.00042,30]
[325306279,1714689771715,-1150.0,0.00042,120]
[325306280,1714689771758,-150.0,0.00042,31]
[325306281,1714689771798,-3000.0,0.00042068,30]
[325306282,1714689771838,-3900.0,0.00042068,30]
[325306283,1714689771874,-500.0,0.00042068,30]
[325306284,1714689771910,-900.0,0.00042068,30]
[325306285,1714689771946,-150.0,0.000423,30]
[325306286,1714689771983,-150.0,0.000423,30]
[325306287,1714689772020,-150.0,0.000423,30]
[325306288,1714689772059,-150.0,0.00042398,30]
[325306289,1714689772098,-2000.0,0.000424,31]
[325306290,1714689772133,-376.5237481,0.000424,120]
[325306291,1714689772171,-150.0,0.00042496,30]
[325306292,1714689772206,-150.0,0.000425,32]
[325306293,1714689772243,-150.0,0.00042594,30]
[325306294,1714689772282,-3000.0,0.00042616,30]
[325306295,1714689772317,-3900.0,0.00042616,30]
[325306296,1714689772353,-500.0,0.00042616,30]
[325306297,1714689772389,-900.0,0.00042616,30]
[325306298,1714689772425,-568.91946499,0.0004267,30]
[325306299,1714689772460,-150.0,0.00042692,30]
[325306300,1714689772497,-150.0,0.0004279,30]
[325306301,1714689773116,-150.0,0.00042888,30]
[325306302,1714689773152,-150.29475591,0.00042961,46]
[325306303,1714689773190,-150.0,0.00042985,30]
[325306304,1714689773228,-1050.0,0.00043,120]
[325306305,1714689773267,-150.0,0.00043,32]
[325306306,1714689773309,-178.96,0.00043014,120]
[325306307,1714689773348,-150.0,0.00043083,30]
[325306308,1714689773386,-1967.03266224,0.00043164,30]
[325306309,1714689773424,-2459.87070661,0.00043164,30]
[325306310,1714689773461,-241.61384701,0.00043164,30]
[325306311,1714689773499,-829.25986446,0.00043164,30]
[325306312,1714689773539,-150.0,0.00043181,30]
[325306313,1714689773577,-150.0,0.0004324,30]
[325306314,1714689773614,-150.0,0.00043279,30]
[325306315,1714689773652,-150.0,0.00043377,30]
[325306316,1714689773687,-2000.0,0.000434,34]
[325306317,1714689773724,-150.0,0.00043475,30]
[325306318,1714689773764,-150.0,0.000435,33]
[325306319,1714689773805,-150.0,0.00043573,30]
[325306320,1714689773844,-4744.8,0.00043653,98]
[325306321,1714689773883,-150.0,0.00043671,30]
[325306322,1714689773919,-150.0,0.00043769,30]
[325306323,1714689773954,-459.36787543,0.000438,30]
[325306324,1714689773989,-516.64426426,0.00043835,30]
[325306325,1714689774024,-200.0,0.00043836,30]
[325306326,1714689774059,-123820.75,0.00043836,30]
[325306327,1714689774096,-150.0,0.00043867,30]
[325306328,1714689774131,-150.29475591,0.00043961,50]
[325306329,1714689774167,-150.0,0.00043965,30]
[325306330,1714689774206,-2000.0,0.00044,30]
[325306331,1714689774246,-950.0,0.00044,120]
[325306332,1714689774286,-1692.438041,0.00044,44]
[325306333,1714689774322,-150.0,0.00044,33]
[325306334,1714689774357,-150.0,0.00044063,30]
[325306335,1714689774392,-150.0,0.0004416,30]
[325306336,1714689774427,-150.0,0.0004418,30]
[325306337,1714689774465,-150.0,0.00044258,30]
[325306338,1714689774503,-150.0,0.00044356,30]
[325306339,1714689774540,-268.1,0.00044396,120]
[325306340,1714689774576,-322.3,0.000444,36]
[325306341,1714689774614,-261.09,0.00044432,120]
[325306342,1714689774652,-150.0,0.00044454,30]
[325306343,1714689774690,-150.0,0.000445,34]
[325306344,1714689774729,-150.0,0.00044552,30]
[325306345,1714689774766,-150.0,0.0004465,30]
[325306346,1714689774802,-150.0,0.00044748,30]
[325306347,1714689774836,-150.0,0.00044846,30]
[325306348,1714689774870,-189.24263463,0.000449,120]
[325306349,1714689774906,-150.0,0.00044944,30]
[325306350,1714689774940,-150.29475591,0.00044961,54]
[325306351,1714689774975,-160.98134757,0.00045,30]
[325306352,1714689775009,-151.0,0.00045,120]
[325306353,1714689775045,-151.0,0.00045,120]
[325306354,1714689775080,-150.0,0.00045,85]
[325306355,1714689775114,-301.999997,0.00045,120]
[325306356,1714689775148,-332.05597426,0.00045,30]
[325306357,1714689775392,-517.57696604,0.00045,120]
[325306358,1714689775429,-850.0,0.00045,120]
[325306359,1714689775467,-150.0,0.00045,35]
[325306360,1714689775504,-2000.0,0.00045,30]
[325306361,1714689775539,-1900.0,0.00045,80]
[325306362,1714689775578,-150.0,0.00045042,30]
[325306363,1714689775615,-876.28,0.00045086,120]
[325306364,1714689775655,-150.0,0.0004512,30]
[325306365,1714689775694,-216.90124,0.0004512,30]
[325306366,1714689775732,-150.0,0.0004514,30]
[325306367,1714689775770,-231.2016,0.0004514,30]
[325306368,1714689775810,-150.0,0.00045238,30]
[325306369,1714689775845,-268.1,0.00045299,120]
[325306370,1714689775881,-150.0,0.00045335,30]
[325306371,1714689775919,-150.0,0.00045433,30]
[325306372,1714689775957,-150.0,0.00045446,120]
[325306373,1714689775993,-150.0,0.000455,35]
[325306374,1714689776030,-150.0,0.00045531,30]
[325306375,1714689776066,-613.74022337,0.000456,120]
[325306376,1714689776104,-150.0,0.00045629,30]
[325306377,1714689776139,-151.0,0.00045699,120]
[325306378,1714689776178,-150.0,0.00045727,30]
[325306379,1714689776216,-150.0,0.00045825,30]
[325306380,1714689776254,-1978.70422495,0.00045888,60]
[325306381,1714689776299,-150.0,0.00045923,30]
[325306382,1714689776335,-150.29475591,0.00045961,59]
[325306383,1714689776371,-150.0,0.00046,96]
[325306384,1714689776406,-750.0,0.00046,120]
[325306385,1714689776442,-150.0,0.00046,36]
[325306386,1714689776476,-2000.0,0.00046,30]
[325306387,1714689776515,-150.0,0.00046021,30]
[325306388,1714689776553,-150.0,0.0004606,30]
[325306389,1714689776590,-150.0,0.00046119,30]
[325306390,1714689776624,-151.0,0.00046164,120]
[325306391,1714689776660,-150.0,0.00046217,30]
[325306392,1714689776702,-150.0,0.00046315,30]
[325306393,1714689776740,-151.0,0.00046384,120]
[325306394,1714689776781,-150.0,0.00046413,30]
[325306395,1714689776818,-150.0,0.000465,36]
[325306396,1714689776854,-150.0,0.0004651,30]
[325306397,1714689776888,-500.0,0.00046575,30]
[325306398,1714689776925,-500.0,0.00046575,30]
[325306399,1714689776962,-500.0,0.00046575,30]
[325306400,1714689777001,-503.80555505,0.00046575,30]
[325306401,1714689777035,-500.0,0.00046575,30]
[325306402,1714689777067,-500.0,0.00046575,30]
[325306403,1714689777101,-501.53777126,0.00046575,30]
[325306404,1714689777135,-500.75556627,0.00046575,30]
[325306405,1714689777171,-500.0,0.00046575,30]
[325306406,1714689777209,-500.0,0.00046575,30]
[325306407,1714689777245,-503.94065656,0.00046575,30]